[Event "Early-Titled-Tuesday-Blitz-April-16-2024"]
[Site "Chess.com"]
[Date "2024.04.16"]
[Round "10"]
[White "Attacker_2006"]
[Black "Mikhail_Golubev"]
[Result "1/2-1/2"]
[WhiteElo "2462"]
[BlackElo "2593"]
[TimeControl "180+1"]
[EndTime "10:01:43 PDT"]
[Termination "Game drawn - insufficient material"]

1. e4 {[%clk 0:02:55.1]} 1... c5 {[%clk 0:02:59.6]} 2. Nc3 {[%clk 0:02:51.9]}
2... d6 {[%clk 0:02:58.8]} 3. f4 {[%clk 0:02:51.4]} 3... g6 {[%clk 0:02:56.8]}
4. Nf3 {[%clk 0:02:49.7]} 4... Bg7 {[%clk 0:02:57]} 5. Bb5+ {[%clk 0:02:48.4]}
5... Bd7 {[%clk 0:02:54]} 6. Bxd7+ {[%clk 0:02:45.6]} 6... Qxd7 {[%clk
0:02:48.8]} 7. O-O {[%clk 0:02:46.5]} 7... Nf6 {[%clk 0:02:48.9]} 8. d3 {[%clk
0:02:45.6]} 8... Nc6 {[%clk 0:02:47.2]} 9. Qe1 {[%clk 0:02:43.3]} 9... h6 {[%clk
0:02:38.1]} 10. Bd2 {[%clk 0:02:32.6]} 10... Rc8 {[%clk 0:02:25]} 11. e5 {[%clk
0:02:17]} 11... dxe5 {[%clk 0:02:24.8]} 12. fxe5 {[%clk 0:02:17.9]} 12... Ng4
{[%clk 0:02:06.5]} 13. Ne4 {[%clk 0:02:09.1]} 13... Ngxe5 {[%clk 0:01:31.9]} 14.
Nxc5 {[%clk 0:01:52]} 14... Nxf3+ {[%clk 0:01:30.9]} 15. Rxf3 {[%clk 0:01:52.6]}
15... Qd4+ {[%clk 0:01:15.6]} 16. Be3 {[%clk 0:01:52.3]} 16... Qxb2 {[%clk
0:01:11.9]} 17. Rb1 {[%clk 0:01:49.8]} 17... Qxc2 {[%clk 0:01:07.6]} 18. Rxb7
{[%clk 0:01:37.3]} 18... O-O {[%clk 0:01:06.8]} 19. Rf2 {[%clk 0:01:32]} 19...
Qc3 {[%clk 0:01:05.7]} 20. Qxc3 {[%clk 0:01:30.7]} 20... Bxc3 {[%clk 0:01:05.2]}
21. Ne4 {[%clk 0:01:31.4]} 21... Bg7 {[%clk 0:00:59.5]} 22. h4 {[%clk
0:01:25.4]} 22... Rfd8 {[%clk 0:00:58.8]} 23. Rd2 {[%clk 0:01:18.4]} 23... e6
{[%clk 0:00:54]} 24. Rf2 {[%clk 0:01:11.3]} 24... Rf8 {[%clk 0:00:11.4]} 25. Nd6
{[%clk 0:01:05.5]} 25... Rb8 {[%clk 0:00:08.5]} 26. Rxb8 {[%clk 0:01:06.1]}
26... Rxb8 {[%clk 0:00:06.2]} 27. Nxf7 {[%clk 0:01:04.9]} 27... Rb2 {[%clk
0:00:04.6]} 28. Nxh6+ {[%clk 0:01:03.8]} 28... Bxh6 {[%clk 0:00:03.6]} 29. Bxh6
{[%clk 0:00:59.8]} 29... Rb1+ {[%clk 0:00:03.9]} 30. Kh2 {[%clk 0:00:59.6]}
30... Nd4 {[%clk 0:00:04.4]} 31. Be3 {[%clk 0:00:57.6]} 31... Nf5 {[%clk
0:00:04.3]} 32. Bxa7 {[%clk 0:00:54.5]} 32... Rb7 {[%clk 0:00:04.9]} 33. Bc5
{[%clk 0:00:52.9]} 33... Nxh4 {[%clk 0:00:05]} 34. a4 {[%clk 0:00:50.8]} 34...
Nf5 {[%clk 0:00:04.1]} 35. a5 {[%clk 0:00:50.6]} 35... Rh7+ {[%clk 0:00:04]} 36.
Kg1 {[%clk 0:00:50.7]} 36... Ng3 {[%clk 0:00:04.7]} 37. Rf8+ {[%clk 0:00:46.5]}
37... Kg7 {[%clk 0:00:04.4]} 38. Rb8 {[%clk 0:00:47.2]} 38... Ne2+ {[%clk
0:00:03.8]} 39. Kf2 {[%clk 0:00:47.2]} 39... Nf4 {[%clk 0:00:04.3]} 40. Rb7+
{[%clk 0:00:47.5]} 40... Kg8 {[%clk 0:00:04.5]} 41. Rxh7 {[%clk 0:00:48.4]}
41... Kxh7 {[%clk 0:00:04.9]} 42. Ke3 {[%clk 0:00:48.1]} 42... Nd5+ {[%clk
0:00:05]} 43. Kd4 {[%clk 0:00:46.8]} 43... Kg7 {[%clk 0:00:05.6]} 44. a6 {[%clk
0:00:46.9]} 44... Nc7 {[%clk 0:00:05.9]} 45. a7 {[%clk 0:00:45.8]} 45... Kf6
{[%clk 0:00:06.2]} 46. Bd6 {[%clk 0:00:44.1]} 46... Nb5+ {[%clk 0:00:06.2]} 47.
Kc5 {[%clk 0:00:42.7]} 47... Nxa7 {[%clk 0:00:07.1]} 48. d4 {[%clk 0:00:34.3]}
48... Nc8 {[%clk 0:00:08]} 49. Be5+ {[%clk 0:00:34.8]} 49... Kf7 {[%clk
0:00:07.2]} 50. Bd6 {[%clk 0:00:27.2]} 50... Ke8 {[%clk 0:00:06.9]} 51. Kc6
{[%clk 0:00:16.3]} 51... Na7+ {[%clk 0:00:07.1]} 52. Kb6 {[%clk 0:00:14.6]}
52... Kd7 {[%clk 0:00:07.3]} 53. Be5 {[%clk 0:00:11.2]} 53... Nc6 {[%clk
0:00:07.3]} 54. Bf6 {[%clk 0:00:10.4]} 54... Nb4 {[%clk 0:00:06.9]} 55. Kc5
{[%clk 0:00:09.2]} 55... Nd5 {[%clk 0:00:07.8]} 56. Be5 {[%clk 0:00:09.6]} 56...
Ne3 {[%clk 0:00:07.8]} 57. g3 {[%clk 0:00:09.2]} 57... g5 {[%clk 0:00:08.2]} 58.
Bf6 {[%clk 0:00:07.4]} 58... g4 {[%clk 0:00:08.1]} 59. Be5 {[%clk 0:00:08]}
59... Nd5 {[%clk 0:00:07.3]} 60. Kc4 {[%clk 0:00:08.2]} 60... Ke7 {[%clk
0:00:07]} 61. Kd3 {[%clk 0:00:08.7]} 61... Kf7 {[%clk 0:00:07]} 62. Ke4 {[%clk
0:00:09.3]} 62... Kg6 {[%clk 0:00:07.3]} 63. Bd6 {[%clk 0:00:08.2]} 63... Kf6
{[%clk 0:00:07]} 64. Be5+ {[%clk 0:00:07.9]} 64... Kg5 {[%clk 0:00:07.2]} 65.
Bf4+ {[%clk 0:00:08.7]} 65... Nxf4 {[%clk 0:00:06.6]} 66. gxf4+ {[%clk
0:00:09.5]} 66... Kf6 {[%clk 0:00:06.8]} 67. Kd3 {[%clk 0:00:04.8]} 67... Kf5
{[%clk 0:00:04.3]} 68. Ke3 {[%clk 0:00:05.1]} 68... g3 {[%clk 0:00:04.6]} 69.
Kf3 {[%clk 0:00:05.5]} 69... g2 {[%clk 0:00:05.1]} 70. Kxg2 {[%clk 0:00:06.1]}
70... Kxf4 {[%clk 0:00:05.5]} 71. d5 {[%clk 0:00:06.6]} 71... exd5 {[%clk
0:00:05.2]} 72. Kf2 {[%clk 0:00:07.2]} 72... Ke4 {[%clk 0:00:05.4]} 73. Ke2
{[%clk 0:00:06.9]} 73... Ke5 {[%clk 0:00:05.8]} 74. Ke3 {[%clk 0:00:07.1]} 74...
d4+ {[%clk 0:00:05.8]} 75. Kd3 {[%clk 0:00:07.8]} 75... Kd5 {[%clk 0:00:06.3]}
76. Kd2 {[%clk 0:00:08.2]} 76... Ke4 {[%clk 0:00:06.7]} 77. Ke2 {[%clk
0:00:08.7]} 77... d3+ {[%clk 0:00:06.3]} 78. Kd2 {[%clk 0:00:09.2]} 78... Kd4
{[%clk 0:00:06.4]} 79. Kd1 {[%clk 0:00:09.8]} 79... Kc4 {[%clk 0:00:06.6]} 80.
Kd2 {[%clk 0:00:09.9]} 80... Kd4 {[%clk 0:00:06.8]} 81. Kd1 {[%clk 0:00:10.2]}
81... Ke4 {[%clk 0:00:07.6]} 82. Kd2 {[%clk 0:00:10.3]} 82... Kf3 {[%clk
0:00:08]} 83. Kxd3 {[%clk 0:00:10.3]} 1/2-1/2

[Event "Early-Titled-Tuesday-Blitz-April-16-2024"]
[Site "Chess.com"]
[Date "2024.04.16"]
[Round "10"]
[White "Grossboss19"]
[Black "imdvb6307"]
[Result "1-0"]
[WhiteElo "2613"]
[BlackElo "2520"]
[TimeControl "180+1"]
[EndTime "10:01:45 PDT"]
[Termination "Grossboss19 won on time"]

1. Nf3 {[%clk 0:02:55.4]} 1... d5 {[%clk 0:02:59.3]} 2. g3 {[%clk 0:02:54.6]}
2... c6 {[%clk 0:02:59.6]} 3. Bg2 {[%clk 0:02:54.7]} 3... Bg4 {[%clk 0:02:59.7]}
4. O-O {[%clk 0:02:54.2]} 4... Nd7 {[%clk 0:02:56.4]} 5. h3 {[%clk 0:02:51.1]}
5... Bxf3 {[%clk 0:02:56]} 6. Bxf3 {[%clk 0:02:52]} 6... e5 {[%clk 0:02:56.4]}
7. Bg2 {[%clk 0:02:49.6]} 7... Ngf6 {[%clk 0:02:55.8]} 8. d3 {[%clk 0:02:46.3]}
8... Be7 {[%clk 0:02:44.2]} 9. e4 {[%clk 0:02:42.8]} 9... dxe4 {[%clk
0:02:43.9]} 10. dxe4 {[%clk 0:02:41.6]} 10... Qc7 {[%clk 0:02:44.5]} 11. Qe2
{[%clk 0:02:41.7]} 11... Nc5 {[%clk 0:02:44.5]} 12. Nd2 {[%clk 0:02:37.7]} 12...
Ne6 {[%clk 0:02:44.1]} 13. c3 {[%clk 0:02:36.3]} 13... O-O {[%clk 0:02:43.2]}
14. Nc4 {[%clk 0:02:35.1]} 14... b5 {[%clk 0:02:30.3]} 15. Ne3 {[%clk
0:02:31.6]} 15... g6 {[%clk 0:02:30]} 16. Bd2 {[%clk 0:02:26]} 16... Nc5 {[%clk
0:02:29.3]} 17. Nc2 {[%clk 0:02:22.5]} 17... Qd7 {[%clk 0:02:23.1]} 18. Rad1
{[%clk 0:02:18]} 18... Qd3 {[%clk 0:02:22.9]} 19. Qxd3 {[%clk 0:02:06.9]} 19...
Nxd3 {[%clk 0:02:22.9]} 20. Bc1 {[%clk 0:02:01.4]} 20... Rfd8 {[%clk 0:02:22.1]}
21. Bf3 {[%clk 0:02:00.2]} 21... Bc5 {[%clk 0:02:14.4]} 22. b4 {[%clk
0:01:50.5]} 22... Bb6 {[%clk 0:02:05.9]} 23. Be3 {[%clk 0:01:43.1]} 23... Nb2
{[%clk 0:01:59.6]} 24. Rxd8+ {[%clk 0:01:40.8]} 24... Rxd8 {[%clk 0:01:59.2]}
25. Bg5 {[%clk 0:01:40.9]} 25... Kg7 {[%clk 0:01:56.1]} 26. Ne3 {[%clk
0:01:36.4]} 26... Rd6 {[%clk 0:01:28.3]} 27. Rb1 {[%clk 0:01:29.3]} 27... Na4
{[%clk 0:01:21.5]} 28. Rd1 {[%clk 0:01:29]} 28... Rxd1+ {[%clk 0:01:16.4]} 29.
Nxd1 {[%clk 0:01:28.6]} 29... h6 {[%clk 0:01:04.1]} 30. Bd2 {[%clk 0:01:26.9]}
30... Ne8 {[%clk 0:01:03.4]} 31. Kf1 {[%clk 0:01:14.2]} 31... Nd6 {[%clk
0:01:03.3]} 32. Ke2 {[%clk 0:01:14.4]} 32... h5 {[%clk 0:00:43.9]} 33. h4 {[%clk
0:01:07.8]} 33... Nc4 {[%clk 0:00:43.1]} 34. Be1 {[%clk 0:01:05.3]} 34... Kf6
{[%clk 0:00:36.1]} 35. g4 {[%clk 0:01:03.5]} 35... hxg4 {[%clk 0:00:35.3]} 36.
Bxg4 {[%clk 0:01:04.4]} 36... Ke7 {[%clk 0:00:35.4]} 37. h5 {[%clk 0:01:02.8]}
37... gxh5 {[%clk 0:00:32.5]} 38. Bxh5 {[%clk 0:01:03.7]} 38... a5 {[%clk
0:00:24.6]} 39. Bg4 {[%clk 0:00:44.5]} 39... Kf6 {[%clk 0:00:23.1]} 40. Bd7
{[%clk 0:00:41]} 40... axb4 {[%clk 0:00:19.3]} 41. cxb4 {[%clk 0:00:41]} 41...
Ke7 {[%clk 0:00:18.6]} 42. Bxc6 {[%clk 0:00:38.9]} 42... Nd6 {[%clk 0:00:19.2]}
43. Kd3 {[%clk 0:00:35.2]} 43... Ke6 {[%clk 0:00:17.9]} 44. f3 {[%clk
0:00:33.3]} 44... f5 {[%clk 0:00:17.6]} 45. Bd2 {[%clk 0:00:28]} 45... fxe4+
{[%clk 0:00:17.5]} 46. fxe4 {[%clk 0:00:27.7]} 46... Bd4 {[%clk 0:00:17.1]} 47.
Kc2 {[%clk 0:00:20.4]} 47... Kf6 {[%clk 0:00:16.3]} 48. Kb3 {[%clk 0:00:19.1]}
48... Ke6 {[%clk 0:00:16.5]} 49. Nc3 {[%clk 0:00:15.5]} 49... Bxc3 {[%clk
0:00:14]} 50. Bxc3 {[%clk 0:00:16]} 50... Nb6 {[%clk 0:00:13.9]} 51. Be1 {[%clk
0:00:13.8]} 51... Kf6 {[%clk 0:00:12.3]} 52. Bh4+ {[%clk 0:00:13.6]} 52... Kf7
{[%clk 0:00:11.6]} 53. Bf2 {[%clk 0:00:13.6]} 53... Nbc8 {[%clk 0:00:09.1]} 54.
a4 {[%clk 0:00:12.5]} 54... bxa4+ {[%clk 0:00:09.1]} 55. Kxa4 {[%clk 0:00:13.4]}
55... Ke6 {[%clk 0:00:08.3]} 56. b5 {[%clk 0:00:12.1]} 56... Ke7 {[%clk
0:00:07.3]} 57. Bh4+ {[%clk 0:00:11.6]} 57... Ke6 {[%clk 0:00:07.1]} 58. Ka5
{[%clk 0:00:11.4]} 58... Nc4+ {[%clk 0:00:06.5]} 59. Ka6 {[%clk 0:00:11.9]}
59... N8b6 {[%clk 0:00:06.5]} 60. Bd8 {[%clk 0:00:11.8]} 60... Na4 {[%clk
0:00:06.5]} 61. b6 {[%clk 0:00:11.2]} 61... Ncxb6 {[%clk 0:00:06.3]} 62. Bxb6
{[%clk 0:00:12.1]} 62... Nc3 {[%clk 0:00:05.7]} 63. Ka5 {[%clk 0:00:12]} 63...
Kd6 {[%clk 0:00:05.3]} 64. Ba8 {[%clk 0:00:11.5]} 64... Ne2 {[%clk 0:00:05]} 65.
Kb4 {[%clk 0:00:11.3]} 65... Nf4 {[%clk 0:00:04.6]} 66. Bc5+ {[%clk 0:00:11.7]}
66... Ke6 {[%clk 0:00:04.3]} 67. Kc4 {[%clk 0:00:12.3]} 67... Kf6 {[%clk
0:00:02.4]} 68. Bb7 {[%clk 0:00:12.9]} 68... Ke6 {[%clk 0:00:02.3]} 69. Bc8+
{[%clk 0:00:13.1]} 69... Kf6 {[%clk 0:00:02.8]} 70. Kc3 {[%clk 0:00:13.4]} 70...
Ng6 {[%clk 0:00:01.7]} 71. Kd3 {[%clk 0:00:13.3]} 71... Nf4+ {[%clk 0:00:02]}
72. Ke3 {[%clk 0:00:13.6]} 72... Ng6 {[%clk 0:00:02.3]} 73. Bf5 {[%clk
0:00:13.1]} 73... Nf4 {[%clk 0:00:02.1]} 74. Bb6 {[%clk 0:00:13.3]} 74... Ke7
{[%clk 0:00:01.7]} 75. Bc5+ {[%clk 0:00:13.3]} 75... Kf6 {[%clk 0:00:01.7]} 76.
Ba3 {[%clk 0:00:13.7]} 76... Kg7 {[%clk 0:00:01.7]} 77. Bb2 {[%clk 0:00:13.4]}
77... Kf6 {[%clk 0:00:02]} 78. Bc3 {[%clk 0:00:13.8]} 78... Nh5 {[%clk
0:00:02.3]} 79. Kf3 {[%clk 0:00:12.9]} 79... Nf4 {[%clk 0:00:02.4]} 80. Bd2
{[%clk 0:00:13.6]} 80... Nd3 {[%clk 0:00:02.7]} 81. Kg4 {[%clk 0:00:13.7]} 81...
Nf2+ {[%clk 0:00:03]} 82. Kh5 {[%clk 0:00:14]} 82... Nd3 {[%clk 0:00:02.5]} 83.
Bg5+ {[%clk 0:00:14.5]} 83... Kf7 {[%clk 0:00:03]} 84. Bh4 {[%clk 0:00:13.7]}
84... Kg7 {[%clk 0:00:03.3]} 85. Kg5 {[%clk 0:00:13.5]} 85... Kf7 {[%clk
0:00:03.8]} 86. Bg3 {[%clk 0:00:13.7]} 86... Ke7 {[%clk 0:00:02.6]} 87. Bg4
{[%clk 0:00:13.8]} 87... Kd6 {[%clk 0:00:02.6]} 88. Kf6 {[%clk 0:00:13.6]} 88...
Kc5 {[%clk 0:00:01.8]} 89. Be2 {[%clk 0:00:13]} 89... Kd4 {[%clk 0:00:01.6]} 90.
Bxd3 {[%clk 0:00:13.4]} 90... Kxd3 {[%clk 0:00:01.5]} 91. Kxe5 {[%clk 0:00:14]}
1-0

[Event "Early-Titled-Tuesday-Blitz-April-16-2024"]
[Site "Chess.com"]
[Date "2024.04.16"]
[Round "11"]
[White "Hercog"]
[Black "Vesper2018"]
[Result "0-1"]
[WhiteElo "2177"]
[BlackElo "2545"]
[TimeControl "180+1"]
[EndTime "10:06:59 PDT"]
[Termination "Vesper2018 won by resignation"]

1. d4 {[%clk 0:02:59.8]} 1... Nf6 {[%clk 0:02:59.9]} 2. c4 {[%clk 0:03:00]} 2...
g6 {[%clk 0:03:00.4]} 3. Nc3 {[%clk 0:03:00.3]} 3... Bg7 {[%clk 0:03:00.9]} 4.
e4 {[%clk 0:03:00.8]} 4... d6 {[%clk 0:03:01.5]} 5. Nf3 {[%clk 0:03:01.3]} 5...
O-O {[%clk 0:03:01.6]} 6. Be2 {[%clk 0:03:01.8]} 6... e5 {[%clk 0:03:01.5]} 7.
Be3 {[%clk 0:03:01.7]} 7... Ng4 {[%clk 0:02:56.2]} 8. Bg5 {[%clk 0:03:01.6]}
8... f6 {[%clk 0:02:56.8]} 9. Bc1 {[%clk 0:03:01.4]} 9... Nc6 {[%clk 0:02:51.3]}
10. O-O {[%clk 0:03:00.9]} 10... exd4 {[%clk 0:02:38.1]} 11. Nxd4 {[%clk
0:03:00.7]} 11... f5 {[%clk 0:02:37]} 12. Nxc6 {[%clk 0:02:58.7]} 12... bxc6
{[%clk 0:02:37]} 13. exf5 {[%clk 0:02:59]} 13... gxf5 {[%clk 0:02:37.4]} 14. h3
{[%clk 0:02:58.7]} 14... Ne5 {[%clk 0:02:34.5]} 15. Be3 {[%clk 0:02:55.5]} 15...
f4 {[%clk 0:02:33.4]} 16. Bd4 {[%clk 0:02:46]} 16... f3 {[%clk 0:02:32.5]} 17.
Bxf3 {[%clk 0:02:22.3]} 17... Nxf3+ {[%clk 0:02:30.5]} 18. gxf3 {[%clk
0:02:22.4]} 18... Bxh3 {[%clk 0:02:28.9]} 0-1

[Event "Early-Titled-Tuesday-Blitz-April-16-2024"]
[Site "Chess.com"]
[Date "2024.04.16"]
[Round "11"]
[White "rhwr"]
[Black "kritipatel"]
[Result "0-1"]
[WhiteElo "2275"]
[BlackElo "2198"]
[TimeControl "180+1"]
[EndTime "10:07:50 PDT"]
[Termination "kritipatel won by resignation"]

1. e4 {[%clk 0:02:59.6]} 1... e5 {[%clk 0:03:00]} 2. Bc4 {[%clk 0:02:58.9]} 2...
Nf6 {[%clk 0:02:59.7]} 3. d3 {[%clk 0:02:59.2]} 3... Nc6 {[%clk 0:02:58.5]} 4.
Nf3 {[%clk 0:02:59.3]} 4... Bc5 {[%clk 0:02:57.4]} 5. O-O {[%clk 0:02:59.6]}
5... h6 {[%clk 0:02:54.7]} 6. c3 {[%clk 0:02:59.4]} 6... O-O {[%clk 0:02:54.2]}
7. b4 {[%clk 0:02:58.3]} 7... Bb6 {[%clk 0:02:50.2]} 8. a4 {[%clk 0:02:58.8]}
8... a6 {[%clk 0:02:43.7]} 9. a5 {[%clk 0:02:56.7]} 9... Ba7 {[%clk 0:02:43.5]}
10. Qe2 {[%clk 0:02:53.8]} 10... d6 {[%clk 0:02:43.4]} 11. h3 {[%clk 0:02:53.3]}
11... Ne7 {[%clk 0:02:43.1]} 12. Be3 {[%clk 0:02:51.8]} 12... Ng6 {[%clk
0:02:42.2]} 13. Bxa7 {[%clk 0:02:50.4]} 13... Rxa7 {[%clk 0:02:43.1]} 14. g3
{[%clk 0:02:49.8]} 14... Bxh3 {[%clk 0:02:40.4]} 15. Rd1 {[%clk 0:02:49.5]}
15... Bg4 {[%clk 0:02:38.7]} 16. Qe3 {[%clk 0:02:47.8]} 16... Ra8 {[%clk
0:02:38.5]} 17. Rd2 {[%clk 0:02:43.3]} 17... Nh5 {[%clk 0:02:33.1]} 18. Nh2
{[%clk 0:02:36.6]} 18... Bh3 {[%clk 0:02:28]} 19. Na3 {[%clk 0:02:33]} 19... Qf6
{[%clk 0:02:17.9]} 20. Nc2 {[%clk 0:02:25.2]} 20... Ngf4 {[%clk 0:01:59.3]} 21.
gxf4 {[%clk 0:02:18.5]} 21... Qg6+ {[%clk 0:01:55.6]} 0-1

[Event "Early-Titled-Tuesday-Blitz-April-16-2024"]
[Site "Chess.com"]
[Date "2024.04.16"]
[Round "11"]
[White "JaackCamel"]
[Black "Chesstiger64"]
[Result "1-0"]
[WhiteElo "2233"]
[BlackElo "2350"]
[TimeControl "180+1"]
[EndTime "10:08:10 PDT"]
[Termination "JaackCamel won by checkmate"]

1. d4 {[%clk 0:03:00.9]} 1... d6 {[%clk 0:02:59.1]} 2. Nf3 {[%clk 0:02:59.7]}
2... Bg4 {[%clk 0:02:58.9]} 3. c4 {[%clk 0:02:57.2]} 3... Bxf3 {[%clk
0:02:58.5]} 4. exf3 {[%clk 0:02:54.1]} 4... c6 {[%clk 0:02:58.8]} 5. Bd3 {[%clk
0:02:53]} 5... e6 {[%clk 0:02:58.7]} 6. O-O {[%clk 0:02:52.3]} 6... d5 {[%clk
0:02:59.2]} 7. Re1 {[%clk 0:02:43.5]} 7... dxc4 {[%clk 0:02:58.5]} 8. Bxc4
{[%clk 0:02:43.3]} 8... Nd7 {[%clk 0:02:54.6]} 9. d5 {[%clk 0:02:41.7]} 9...
cxd5 {[%clk 0:02:54]} 10. Bxd5 {[%clk 0:02:37.5]} 10... Bb4 {[%clk 0:02:52.1]}
11. Nc3 {[%clk 0:02:32.3]} 11... Bxc3 {[%clk 0:02:51.4]} 12. bxc3 {[%clk
0:02:31.2]} 12... Qc7 {[%clk 0:02:49.9]} 13. Qb3 {[%clk 0:02:19.4]} 13... Nc5
{[%clk 0:02:43.3]} 14. Qb5+ {[%clk 0:02:13.8]} 14... Kf8 {[%clk 0:02:42.2]} 15.
Ba3 {[%clk 0:02:07.7]} 15... Rc8 {[%clk 0:02:41.8]} 16. Bxb7 {[%clk 0:01:59.8]}
16... Qxb7 {[%clk 0:02:32.8]} 17. Qxb7 {[%clk 0:01:52.4]} 17... Nh6 {[%clk
0:02:24.4]} 18. Qxc8+ {[%clk 0:01:49.4]} 18... Ke7 {[%clk 0:02:24.6]} 19. Bxc5+
{[%clk 0:01:47.2]} 19... Kf6 {[%clk 0:02:24.6]} 20. Qxh8 {[%clk 0:01:45.3]}
20... Nf5 {[%clk 0:02:25.2]} 21. Qxh7 {[%clk 0:01:41.6]} 21... g5 {[%clk
0:02:24.2]} 22. Qh8+ {[%clk 0:01:35]} 22... Kg6 {[%clk 0:02:23.2]} 23. Rad1
{[%clk 0:01:29.5]} 23... a6 {[%clk 0:02:22.6]} 24. Rd7 {[%clk 0:01:27.2]} 24...
Nh4 {[%clk 0:02:22.5]} 25. Bd4 {[%clk 0:01:22.4]} 25... e5 {[%clk 0:02:20.6]}
26. Bxe5 {[%clk 0:01:19.7]} 26... Nxf3+ {[%clk 0:02:20.1]} 27. gxf3 {[%clk
0:01:18.9]} 27... f6 {[%clk 0:02:20.6]} 28. Qh7# {[%clk 0:01:17.6]} 1-0

[Event "Early-Titled-Tuesday-Blitz-April-16-2024"]
[Site "Chess.com"]
[Date "2024.04.16"]
[Round "11"]
[White "NasirAkylbekov"]
[Black "RandomNoob04"]
[Result "1-0"]
[WhiteElo "2537"]
[BlackElo "2656"]
[TimeControl "180+1"]
[EndTime "10:08:21 PDT"]
[Termination "NasirAkylbekov won by resignation"]

1. e4 {[%clk 0:02:59.7]} 1... d5 {[%clk 0:03:00.3]} 2. exd5 {[%clk 0:02:59.8]}
2... Qxd5 {[%clk 0:03:01.2]} 3. Nc3 {[%clk 0:03:00.4]} 3... Qa5 {[%clk 0:03:02]}
4. b4 {[%clk 0:03:01.1]} 4... Nf6 {[%clk 0:03:02.9]} 5. bxa5 {[%clk 0:03:01.5]}
5... a6 {[%clk 0:02:24]} 6. Nf3 {[%clk 0:02:59.6]} 6... Nc6 {[%clk 0:02:24.7]}
7. d4 {[%clk 0:02:56.2]} 7... Bg4 {[%clk 0:02:24.5]} 8. Be3 {[%clk 0:02:56.1]}
8... O-O-O {[%clk 0:02:24.9]} 9. Be2 {[%clk 0:02:53.3]} 9... e6 {[%clk
0:02:25.2]} 10. h3 {[%clk 0:02:52.2]} 10... Bb4 {[%clk 0:02:24.8]} 11. hxg4
{[%clk 0:02:35.7]} 11... Bxc3+ {[%clk 0:02:24.9]} 12. Kf1 {[%clk 0:02:36]} 12...
e5 {[%clk 0:02:23.5]} 13. Rb1 {[%clk 0:02:35.4]} 13... exd4 {[%clk 0:02:21.2]}
14. Bg5 {[%clk 0:02:35.4]} 14... Rd6 {[%clk 0:02:20.4]} 15. Bxf6 {[%clk
0:02:27.5]} 15... Rxf6 {[%clk 0:02:21.3]} 16. g5 {[%clk 0:02:27.7]} 16... Re6
{[%clk 0:02:20.6]} 17. Bd3 {[%clk 0:02:24.8]} 17... h6 {[%clk 0:02:18.5]} 18. g3
{[%clk 0:02:24.3]} 18... Rhe8 {[%clk 0:02:15.3]} 19. Kg2 {[%clk 0:02:21.6]}
19... hxg5 {[%clk 0:02:14.2]} 20. Nxg5 {[%clk 0:02:21.6]} 20... Rf6 {[%clk
0:02:14.9]} 21. Qg4+ {[%clk 0:02:20.4]} 21... Kb8 {[%clk 0:02:14.2]} 22. Be4
{[%clk 0:02:16.3]} 22... Ne5 {[%clk 0:02:10.6]} 23. Rxb7+ {[%clk 0:02:15.9]}
23... Ka8 {[%clk 0:02:06.9]} 24. Rb5+ {[%clk 0:02:07.2]} 24... Ka7 {[%clk
0:02:06]} 25. Rb7+ {[%clk 0:02:00.2]} 25... Ka8 {[%clk 0:02:05.7]} 26. Rhb1
{[%clk 0:02:00.5]} 26... c6 {[%clk 0:02:00.1]} 27. Qe2 {[%clk 0:01:49.4]} 27...
d3 {[%clk 0:01:55.4]} 28. Qe3 {[%clk 0:01:43.9]} 28... c5 {[%clk 0:01:49.3]} 29.
Rb8+ {[%clk 0:01:43]} 1-0

[Event "Early-Titled-Tuesday-Blitz-April-16-2024"]
[Site "Chess.com"]
[Date "2024.04.16"]
[Round "11"]
[White "SpongeBob_03"]
[Black "Statham_01"]
[Result "0-1"]
[WhiteElo "2278"]
[BlackElo "2609"]
[TimeControl "180+1"]
[EndTime "10:08:34 PDT"]
[Termination "Statham_01 won by checkmate"]

1. e4 {[%clk 0:02:58.7]} 1... e5 {[%clk 0:02:59.9]} 2. Nf3 {[%clk 0:02:58.7]}
2... Nf6 {[%clk 0:03:00.4]} 3. Nxe5 {[%clk 0:02:58.5]} 3... Nc6 {[%clk
0:02:59.2]} 4. Nxc6 {[%clk 0:02:58.2]} 4... dxc6 {[%clk 0:03:00.1]} 5. d3 {[%clk
0:02:58.7]} 5... Bc5 {[%clk 0:03:00.4]} 6. Be2 {[%clk 0:02:59.1]} 6... h5 {[%clk
0:02:59.8]} 7. h3 {[%clk 0:02:56.2]} 7... Qd4 {[%clk 0:02:59.4]} 8. O-O {[%clk
0:02:43.6]} 8... Qe5 {[%clk 0:02:58.9]} 9. Kh1 {[%clk 0:02:36.1]} 9... Ng4
{[%clk 0:02:58.4]} 10. f4 {[%clk 0:02:36.1]} 10... Qf6 {[%clk 0:02:51]} 11. Qe1
{[%clk 0:02:26.1]} 11... Bd7 {[%clk 0:02:34.1]} 12. c3 {[%clk 0:02:22.3]} 12...
Ne3 {[%clk 0:02:32.6]} 13. Bxe3 {[%clk 0:01:48.2]} 13... Bxe3 {[%clk 0:02:33.5]}
14. Bxh5 {[%clk 0:01:48.2]} 14... Bb6 {[%clk 0:02:21.7]} 15. Qe2 {[%clk
0:01:31.7]} 15... Qh4 {[%clk 0:02:07]} 16. Bxf7+ {[%clk 0:01:13]} 16... Kxf7
{[%clk 0:02:05.1]} 17. f5 {[%clk 0:01:13.9]} 17... Qg3 {[%clk 0:01:57.6]} 18.
Rf3 {[%clk 0:01:06.2]} 18... Rxh3+ {[%clk 0:01:54.6]} 19. gxh3 {[%clk
0:01:03.8]} 19... Qg1# {[%clk 0:01:55.5]} 0-1

[Event "Early-Titled-Tuesday-Blitz-April-16-2024"]
[Site "Chess.com"]
[Date "2024.04.16"]
[Round "11"]
[White "dmosesov"]
[Black "XDPS"]
[Result "1/2-1/2"]
[WhiteElo "2640"]
[BlackElo "2828"]
[TimeControl "180+1"]
[EndTime "10:08:52 PDT"]
[Termination "Game drawn by repetition"]

1. Nf3 {[%clk 0:03:00.9]} 1... d5 {[%clk 0:03:00]} 2. c4 {[%clk 0:03:00.7]} 2...
c6 {[%clk 0:03:00.2]} 3. e3 {[%clk 0:03:00.9]} 3... Nf6 {[%clk 0:03:00.7]} 4.
Nc3 {[%clk 0:03:01.1]} 4... e6 {[%clk 0:03:01.3]} 5. Qc2 {[%clk 0:02:59.6]} 5...
Bd6 {[%clk 0:03:01.7]} 6. d4 {[%clk 0:02:53.7]} 6... O-O {[%clk 0:03:02.1]} 7.
Be2 {[%clk 0:02:52.1]} 7... b6 {[%clk 0:03:02.2]} 8. O-O {[%clk 0:02:51.6]} 8...
Bb7 {[%clk 0:03:02.6]} 9. e4 {[%clk 0:02:39.7]} 9... dxe4 {[%clk 0:02:58.6]} 10.
Nxe4 {[%clk 0:02:40.6]} 10... Nxe4 {[%clk 0:02:58.2]} 11. Qxe4 {[%clk
0:02:41.5]} 11... Nd7 {[%clk 0:02:53.8]} 12. Bd3 {[%clk 0:02:32.6]} 12... Nf6
{[%clk 0:02:53.6]} 13. Qh4 {[%clk 0:02:32.6]} 13... c5 {[%clk 0:02:53.7]} 14. d5
{[%clk 0:01:24.2]} 14... exd5 {[%clk 0:02:52.2]} 15. Bg5 {[%clk 0:01:23.8]}
15... h6 {[%clk 0:02:49.7]} 16. Bxh6 {[%clk 0:01:23.5]} 16... gxh6 {[%clk
0:02:50.6]} 17. Qxh6 {[%clk 0:01:21.1]} 17... dxc4 {[%clk 0:02:24]} 18. Qg5+
{[%clk 0:01:06.6]} 18... Kh8 {[%clk 0:02:09.1]} 19. Qh6+ {[%clk 0:01:07.1]}
19... Kg8 {[%clk 0:02:09.4]} 20. Qg5+ {[%clk 0:00:30.2]} 20... Kh8 {[%clk
0:02:09.2]} 21. Qh6+ {[%clk 0:00:30.5]} 21... Kg8 {[%clk 0:02:09.4]} 1/2-1/2